Cogmind - Beta 10 X1 @@@ ROGUE MODE // 2020.06.27 @ 22:57:39 Player: lsend Result: Destroyed by S-27 Virus with Autogun Performance ------------- Evolutions (3) 1500 Regions Visited (8) 1600 Robots Destroyed (0) 0 Value Destroyed (0) 0 Prototype IDs (26) 520 Alien Tech Used (0) 0 Bonus (1228) 1228 TOTAL SCORE: 4848 Bonus ------- Pacifist 928 Aligned with FarCom 300 Cogmind --------- Core Integrity 0/700 Matter 227/300 Energy 89/100 System Corruption 0% Temperature Cool (0) Movement Core (50) Location -7/Factory Parts ------- > --- POWER (2) -------- (None) > --- PROPULSION (4) --- Faulty Improved Cesium-ion Thruster > --- UTILITY (5) ------ Enhanced Optical Array > --- WEAPON (2) ------- (None) > --- INVENTORY (4) ---- Micro Nuclear Core Micro Nuclear Core Micro Nuclear Core Peak State ------------ > --- POWER ------------ (None) > --- PROPULSION ------- Light Treads Light Treads Improved Treads > --- UTILITY ---------- Enhanced Optical Array Advanced Sensor Array Terrain Scanner > --- WEAPON ----------- (None) > --- INVENTORY -------- Micro Nuclear Core Micro Nuclear Core Micro Nuclear Core [Rating: 13] Favorites ----------- Power None Propulsion Light Treads Treads Light Treads Flight Unit Improved Cesium-ion Thruster Utility Terrain Scanner Device Terrain Scanner Processor Enhanced Optical Array Protection Propulsion Shielding Weapon None Build | -11 -10 -10 -9 -9 -9 -8 -8 -7 ------- Run | Scr Mat Min Mat Min Exi Min Mat Fac Slots Evolved 6 | . . . 2 . . . 2 2 Power 1 | . . . . . . . . 1 Propulsion 2 | . . . 1 . . . 1 . Utility 3 | . . . 1 . . . 1 1 Weapon . | . . . . . . . . . Parts Attached 8 | 2 2 . 1 . . . . 3 Power . | . . . . . . . . . Engine . | . . . . . . . . . Core . | . . . . . . . . . Reactor . | . . . . . . . . . Propulsion 4 | 2 . . 1 . . . . 1 Treads 3 | 2 . . 1 . . . . . Leg . | . . . . . . . . . Wheel . | . . . . . . . . . Hover . | . . . . . . . . . Flight 1 | . . . . . . . . 1 Utility 4 | . 2 . . . . . . 2 Device 2 | . 1 . . . . . . 1 Storage . | . . . . . . . . . Processor 1 | . . . . . . . . 1 Hackware . | . . . . . . . . . Protection 1 | . 1 . . . . . . . Artifact . | . . . . . . . . . Weapon . | . . . . . . . . . Energy Gun . | . . . . . . . . . Energy Cannon . | . . . . . . . . . Ballistic Gun . | . . . . . . . . . Ballistic Cannon . | . . . . . . . . . Launcher . | . . . . . . . . . Special Weapon . | . . . . . . . . . Impact Weapon . | . . . . . . . . . Slashing Weapon . | . . . . . . . . . Piercing Weapon . | . . . . . . . . . Special Melee Weapon . | . . . . . . . . . Unidentified Prototypes 1 | . . . . . . . . 1 Parts Lost 6 | . . . 1 . . . . 5 Power . | . . . . . . . . . Propulsion 3 | . . . . . . . . 3 Utility 3 | . . . 1 . . . . 2 Weapon . | . . . . . . . . . Highest Loss Streak 5 | . . . 1 . . . . 5 Average Slot Usage (%) 41 | . 49 57 47 44 44 44 36 31 Treads 25 | . 28 28 25 33 33 33 27 13 Device 11 | . 12 14 11 11 11 11 9 11 Processor 1 | . . . . . . . . 5 Protection 2 | . 8 14 11 . . . . . Naked Turns . | . . . . . . . . . Heaviest Build 2 | . 2 2 2 1 1 1 1 2 Greatest Support 3 | 3 3 3 3 3 3 3 3 3 Greatest Overweight (x) . | . . . . . . . . . Average Overweight (x) . | . . . . . . . . . Largest Inventory Capacity 4 | 4 4 4 4 4 4 4 4 4 Average Capacity 4 | 4 4 4 4 4 4 4 4 4 Most Carried 4 | . . . . . 4 4 4 4 Average Carried 1 | . . . . . 2 4 4 2 Final Capacity 4 | 4 4 4 4 4 4 4 4 4 Final Carried 4 | . . . . . 4 4 4 3 Class Distribution -------------------- 66% | Mutant 33% | Scout Dominant Class ---------------- Mutant | -10/Materials Mutant | -10/Mines Mutant | -9/Materials Mutant | -9/Mines Mutant | -9/Exiles Scout | -8/Mines Scout | -8/Materials Scout | -7/Factory Resources | -11 -10 -10 -9 -9 -9 -8 -8 -7 ----------- Run | Scr Mat Min Mat Min Exi Min Mat Fac Matter Collected 177 | 177 . . . . . . . . Remotely . | . . . . . . . . . Salvage Created . | . . . . . . . . . Parts . | . . . . . . . . . Haulers Intercepted . | . . . . . . . . . Recyclers Shooed . | . . . . . . . . . Parts Field Recycled . | . . . . . . . . . Retrieved Matter . | . . . . . . . . . Parts Self-Destructed . | . . . . . . . . . Prevented . | . . . . . . . . . Kills | -11 -10 -10 -9 -9 -9 -8 -8 -7 ------- Run | Scr Mat Min Mat Min Exi Min Mat Fac Combat Hostiles Destroyed . | . . . . . . . . . Classes Destroyed . | . . . . . . . . . Best Kill Streak . | . . . . . . . . . Combat Bots Only . | . . . . . . . . . Max Kills in Single Turn . | . . . . . . . . . Gunslinging . | . . . . . . . . . Exploded . | . . . . . . . . . Melee . | . . . . . . . . . Uniques/NPCs Destroyed . | . . . . . . . . . Combat | -11 -10 -10 -9 -9 -9 -8 -8 -7 -------- Run | Scr Mat Min Mat Min Exi Min Mat Fac Damage Taken 1380 | . 85 73 148 . . . 130 944 Core 767 | . . 13 15 . . . 29 710 Absorbed by Shields . | . . . . . . . . . Core Remaining (%) 96 | 100 . 94 . . . 96 94 . Volleys Fired . | . . . . . . . . . Largest . | . . . . . . . . . Hottest . | . . . . . . . . . Shots Fired . | . . . . . . . . . Gun . | . . . . . . . . . Cannon . | . . . . . . . . . Launcher . | . . . . . . . . . Special . | . . . . . . . . . Kinetic . | . . . . . . . . . Thermal . | . . . . . . . . . Explosive . | . . . . . . . . . Electromagnetic . | . . . . . . . . . Robot Hit Streak . | . . . . . . . . . Robot Miss Streak . | . . . . . . . . . Penetration Max . | . . . . . . . . . Secondary Targets . | . . . . . . . . . Shots Hit Robots . | . . . . . . . . . Core Hits . | . . . . . . . . . Critical Hits . | . . . . . . . . . Critical Kills . | . . . . . . . . . Critical Parts Destroyed . | . . . . . . . . . Melee Attacks . | . . . . . . . . . Impact . | . . . . . . . . . Slashing . | . . . . . . . . . Piercing . | . . . . . . . . . Sneak Attacks . | . . . . . . . . . Combat Hostiles . | . . . . . . . . . Follow-up Attacks . | . . . . . . . . . Damage Inflicted . | . . . . . . . . . Guns . | . . . . . . . . . Cannons . | . . . . . . . . . Explosions . | . . . . . . . . . Melee . | . . . . . . . . . Ramming . | . . . . . . . . . Kinetic . | . . . . . . . . . Thermal . | . . . . . . . . . Explosive . | . . . . . . . . . Electromagnetic . | . . . . . . . . . Impact . | . . . . . . . . . Slashing . | . . . . . . . . . Piercing . | . . . . . . . . . Highest Corruption . | . . . . . . . . . Average Corruption . | . . . . . . . . . Corruption Purged . | . . . . . . . . . Overload Shots . | . . . . . . . . . Overflow Damage . | . . . . . . . . . Projectiles . | . . . . . . . . . Explosions . | . . . . . . . . . Melee . | . . . . . . . . . Knockbacks . | . . . . . . . . . Impact . | . . . . . . . . . Kinetic . | . . . . . . . . . Secondary . | . . . . . . . . . Self-Inflicted Damage . | . . . . . . . . . Shots . | . . . . . . . . . Rammed . | . . . . . . . . . Targets Rammed . | . . . . . . . . . Kicked . | . . . . . . . . . Crushed . | . . . . . . . . . Highest Temperature . | . . . . . . . . . Average Temperature . | . . . . . . . . . Received Heat Transfer 285 | . 48 . 39 . . . 45 153 Siege Activations . | . . . . . . . . . Robots Corrupted . | . . . . . . . . . Combat Hostiles . | . . . . . . . . . Parts Fried . | . . . . . . . . . Impact Corruptions . | . . . . . . . . . Robots Melted . | . . . . . . . . . Combat Hostiles . | . . . . . . . . . Parts Melted . | . . . . . . . . . Heat Transferred . | . . . . . . . . . Parts Sabotaged . | . . . . . . . . . Parts Stolen . | . . . . . . . . . Parts Stripped . | . . . . . . . . . Power Chain Reactions . | . . . . . . . . . Missiles Intercepted . | . . . . . . . . . Alert | -11 -10 -10 -9 -9 -9 -8 -8 -7 ------- Run | Scr Mat Min Mat Min Exi Min Mat Fac Peak Influence 80 | . 56 36 80 33 . 15 50 28 Average Influence 23 | . 20 35 35 33 . 3 28 22 Maximum Alert Level . | . . . . . . . . . Low Security (%) 100 | 100 100 100 100 100 . 100 100 100 Level 1 . | . . . . . . . . . Level 2 . | . . . . . . . . . Level 3 . | . . . . . . . . . Level 4 . | . . . . . . . . . Level 5 . | . . . . . . . . . High Security . | . . . . . . . . . Max Security . | . . . . . . . . . Squads Dispatched 5 | . 1 . . . . . 1 3 Investigation 2 | . 1 . . . . . . 1 Extermination . | . . . . . . . . . Reinforcement 3 | . . . . . . . 1 2 Assault . | . . . . . . . . . Garrison . | . . . . . . . . . Intercept . | . . . . . . . . . Construction Impeded . | . . . . . . . . . Haulers Reinforced . | . . . . . . . . . Stealth | -11 -10 -10 -9 -9 -9 -8 -8 -7 --------- Run | Scr Mat Min Mat Min Exi Min Mat Fac Distress Signals 4 | . 2 . . . . . 1 1 Communications Jammed . | . . . . . . . . . Distress Signals . | . . . . . . . . . Times Spotted 41 | . 5 4 6 . . . 5 21 Peak Tracking Total 16 | . 9 3 6 . . . 5 16 Tactical Retreats 5 | . 1 1 . . . . . 3 Traps | -11 -10 -10 -9 -9 -9 -8 -8 -7 ------- Run | Scr Mat Min Mat Min Exi Min Mat Fac Traps Triggered 1 | . 1 . . . . . . . Indirectly . | . . . . . . . . . Trap Hack Attempts . | . . . . . . . . . Triggered . | . . . . . . . . . Disarmed . | . . . . . . . . . Reprogrammed . | . . . . . . . . . Reused . | . . . . . . . . . Traps Extracted . | . . . . . . . . . Installed . | . . . . . . . . . Triggered . | . . . . . . . . . Machines | -11 -10 -10 -9 -9 -9 -8 -8 -7 ---------- Run | Scr Mat Min Mat Min Exi Min Mat Fac Machines Disabled . | . . . . . . . . . Max in Single Turn . | . . . . . . . . . Machines Sabotaged . | . . . . . . . . . Garrisons Compromised . | . . . . . . . . . Overloaded Fab Kills . | . . . . . . . . . Fab Network Shutdowns . | . . . . . . . . . Hacking | -11 -10 -10 -9 -9 -9 -8 -8 -7 --------- Run | Scr Mat Min Mat Min Exi Min Mat Fac Machines Accessed 11 | . 3 . 2 . 3 . . 3 Terminals 7 | . 3 . 1 . . . . 3 Fabricators . | . . . . . . . . . Repair Stations . | . . . . . . . . . Recycling Units 1 | . . . 1 . . . . . Scanalyzers . | . . . . . . . . . Garrison Access . | . . . . . . . . . Total Hacks 28 | . 5 . 3 . 6 . . 14 Successful 21 | . 3 . 3 . 6 . . 9 Failed 7 | . 2 . . . . . . 5 Catastrophic . | . . . . . . . . . Database Lockouts . | . . . . . . . . . Manual 9 | . 1 . . . 1 . . 7 Terminals 21 | . 5 . 2 . . . . 14 Fabricators . | . . . . . . . . . Repair Stations . | . . . . . . . . . Recycling Units 1 | . . . 1 . . . . . Scanalyzers . | . . . . . . . . . Garrison Access . | . . . . . . . . . Terminal Hacks 17 | . 3 . 2 . 6 . . 6 Record 5 | . . . . . 5 . . . Prototype ID Bank 1 | . . . . . . . . 1 Level Access Points 1 | . 1 . . . . . . . Branch Access Points 3 | . 1 . 1 . . . . 1 Emergency Access Points 1 | . . . 1 . . . . . Locate Traps 2 | . 1 . . . . . . 1 Dispatch Records 1 | . . . . . . . . 1 Zone Layout 2 | . . . . . . . . 2 EX-Prototype ID Bank 1 | . . . . . 1 . . . Fabricator Hacks . | . . . . . . . . . Repair Station Hacks . | . . . . . . . . . Recycling Unit Hacks 1 | . . . 1 . . . . . Retrieve Components 1 | . . . 1 . . . . . Scanalyzer . | . . . . . . . . . Garrison Access Hacks . | . . . . . . . . . Unauthorized Hacks 3 | . . . . . . . . 3 Terminals 3 | . . . . . . . . 3 Botnet 2 | . . . . . . . . 2 Disrupt 1 | . . . . . . . . 1 Fabricators . | . . . . . . . . . Repair Stations . | . . . . . . . . . Recycling Units . | . . . . . . . . . Scanalyzers . | . . . . . . . . . Garrison Access . | . . . . . . . . . Data Cores Recovered . | . . . . . . . . . Used . | . . . . . . . . . Hacking Detections 7 | . 3 . 1 . . . . 3 Full Trace Events 1 | . . . . . . . . 1 Feedback Events . | . . . . . . . . . Feedback Blocked . | . . . . . . . . . Robot Schematics Acquired . | . . . . . . . . . Robots Built . | . . . . . . . . . Matter . | . . . . . . . . . Time . | . . . . . . . . . Total Robot Build Rating . | . . . . . . . . . Part Schematics Acquired . | . . . . . . . . . Parts Built . | . . . . . . . . . Matter . | . . . . . . . . . Time . | . . . . . . . . . Total Part Build Rating . | . . . . . . . . . Parts Repaired . | . . . . . . . . . Time . | . . . . . . . . . Parts Recycled . | . . . . . . . . . Recycled Matter . | . . . . . . . . . Retrieved Matter . | . . . . . . . . . Retrieved Components 1 | . . . 1 . . . . . Parts Scanalyzed . | . . . . . . . . . Part Schematics Acquired . | . . . . . . . . . Parts Damaged . | . . . . . . . . . Bothacking | -11 -10 -10 -9 -9 -9 -8 -8 -7 ------------ Run | Scr Mat Min Mat Min Exi Min Mat Fac Used RIF Installer . | . . . . . . . . . Robots Hacked . | . . . . . . . . . Non-combat . | . . . . . . . . . Combat . | . . . . . . . . . Robot Hacks Applied . | . . . . . . . . . Relay Couplers Released . | . . . . . . . . . Robots Rewired . | . . . . . . . . . Allies Hacked . | . . . . . . . . . Hacks Repelled . | . . . . . . . . . Allies | -11 -10 -10 -9 -9 -9 -8 -8 -7 -------- Run | Scr Mat Min Mat Min Exi Min Mat Fac Total Allies . | . . . . . . . . . Largest Group . | . . . . . . . . . Highest-Rated Group . | . . . . . . . . . Highest-Rated Ally . | . . . . . . . . . Total Orders . | . . . . . . . . . Ally Attacks . | . . . . . . . . . Total Damage . | . . . . . . . . . Kills . | . . . . . . . . . Allies Corrupted . | . . . . . . . . . Allies Melted . | . . . . . . . . . Intel | -11 -10 -10 -9 -9 -9 -8 -8 -7 ------- Run | Scr Mat Min Mat Min Exi Min Mat Fac Robot Analysis Total . | . . . . . . . . . Derelict Logs Recovered . | . . . . . . . . . Drone Launches . | . . . . . . . . . Drone Recoveries . | . . . . . . . . . Exploration | -11 -10 -10 -9 -9 -9 -8 -8 -7 ------------- Run | Scr Mat Min Mat Min Exi Min Mat Fac Turns Passed 689 | 16 95 33 74 31 148 55 52 185 Spaces Moved 1305 | 26 177 54 145 56 292 110 93 352 Core 1305 | 26 177 54 145 56 292 110 93 352 Treads . | . . . . . . . . . Legs . | . . . . . . . . . Wheels . | . . . . . . . . . Hover . | . . . . . . . . . Flight . | . . . . . . . . . Fastest Speed 50 | 50 50 50 50 50 50 50 50 50 Average Speed 50 | 50 50 50 50 50 50 50 50 50 Slowest Speed 50 | 50 50 50 50 50 50 50 50 50 Overloaded Moves . | . . . . . . . . . Propulsion Burnouts . | . . . . . . . . . Robots Hopped . | . . . . . . . . . Cave-ins Triggered . | . . . . . . . . . Exploration Rate (%) 26 | 3 44 20 30 14 62 32 16 16 Regions Visited 8 Branch Regions 4 Pre-discovered Areas 2 | . . . . 1 1 . . . Known Exits Taken 3 | . 1 1 1 . . . . . Unknown Exits Taken 5 | 1 . . . 1 1 1 1 . Scrap Searched . | . . . . . . . . . Spaces Dug . | . . . . . . . . . Terrain Destroyed . | . . . . . . . . . Melee . | . . . . . . . . . Projectile . | . . . . . . . . . AOE . | . . . . . . . . . Actions | -11 -10 -10 -9 -9 -9 -8 -8 -7 --------- Run | Scr Mat Min Mat Min Exi Min Mat Fac Total 1330 | 27 181 59 145 58 293 109 97 361 Wait 17 | . 3 6 . 3 . . 5 . Move 1297 | 25 176 53 144 55 291 109 92 352 Hop . | . . . . . . . . . Pick Up 6 | . . . . . 2 . . 4 Fast Attach 7 | 2 2 . 1 . . . . 2 Attach 1 | . . . . . . . . 1 Detach . | . . . . . . . . . Swap . | . . . . . . . . . Drop 2 | . . . . . . . . 2 Fire . | . . . . . . . . . Melee . | . . . . . . . . . Ram . | . . . . . . . . . Kick . | . . . . . . . . . Crush . | . . . . . . . . . Escape Stasis . | . . . . . . . . . Rewire . | . . . . . . . . . Trap . | . . . . . . . . . Miscellaneous . | . . . . . . . . . Route ------- -11/Scrapyard -10/Materials (discovered 5 exits: *Mat x3 / *Min x2) -10/Mines -9/Materials (discovered 3 exits: *Min x2 / Sto) -9/Mines -9/Exiles (discovered 2 exits: [*Min x2]) -8/Mines -8/Materials -7/Factory (discovered 2 exits: Low x2) History --------- Turn | Location | Event 3 | -11/Scrapyard | Discovered new exit (range 16) 17 | -11/Scrapyard | Entered Materials 76 | -10/Materials | Identified exit to Materials 95 | -10/Materials | Identified exit to Mines 112 | -10/Materials | Entered Mines 143 | -10/Mines | Discovered exit to Materials (range 7) 145 | -10/Mines | Entered Materials 145 | -9/Materials | Evolved 2 slots: Propulsion x1, Utility x1 182 | -9/Materials | Identified exit to Mines 182 | -9/Materials | Identified exit to Storage 219 | -9/Materials | Entered Mines 244 | -9/Mines | Learned location of Storage (-9) 248 | -9/Mines | Deemed a non-threat by the Exiles lab entrance 248 | -9/Mines | Discovered new exit (range 5) 250 | -9/Mines | Entered Exiles 258 | -9/Exiles | Discovered new exit (range 15) 264 | -9/Exiles | Met 8R-AWN 270 | -9/Exiles | Met EX-HEX 287 | -9/Exiles | Met EX-BIN 294 | -9/Exiles | Aligned with FarCom system 294 | -9/Exiles | Given EX-Vault access code 306 | -9/Exiles | Build established: Mutant 306 | -9/Exiles | Opened EX-Vault 309 | -9/Exiles | Found Firepult 311 | -9/Exiles | Found AWS/Thermal 322 | -9/Exiles | Warned to stay clear of 0b10 Research branches 375 | -9/Exiles | Met EX-DEC 377 | -9/Exiles | Learned location of Zion (-6) 391 | -9/Exiles | Discovered new exit (range 14) 398 | -9/Exiles | Stole two prototypes: AWS/Thermal, Firepult 398 | -9/Exiles | Entered Mines 448 | -8/Mines | Discovered new exit (range 11) 453 | -8/Mines | Entered Materials 453 | -8/Materials | Evolved 2 slots: Propulsion x1, Utility x1 497 | -8/Materials | Discovered new exit (range 12) 505 | -8/Materials | Entered Factory 505 | -7/Factory | Evolved 2 slots: Power x1, Utility x1 507 | -7/Factory | FarCom data flow suspended 642 | -7/Factory | Identified exit to Lower Caves 657 | -7/Factory | Core integrity fell below 50% 668 | -7/Factory | Core integrity fell below 20% 683 | -7/Factory | Lost 5 parts (3n2u) 690 | -7/Factory | Destroyed by S-27 Virus with Autogun Last Messages --------------- Trojan loaded successfully. Testing... Disruption routine running. 00642_ ALERT: Suspicious activity at Terminal F018. Dispatching Investigation squad. 00649_ K-01 Serf latches onto U-05 Engineer. 00649_ K-01 Serf pushes U-05 Engineer. 00650_ Slug penetrates Wall. 00650_ Adv. Sensor Array destroyed. 00651_ K-01 Serf pushes U-05 Engineer. 00652_ Terrain Scanner destroyed. 00653_ K-01 Serf pushes U-05 Engineer. 00654_ W-25 Informer sends out distress signal. 00654_ K-01 Serf pushes U-05 Engineer. 00656_ Penetrated by Slug. 00657_ K-01 Serf latches onto U-05 Engineer. 00657_ K-01 Serf pushes U-05 Engineer. 00659_ Penetrated by Slug. 00687_ Identified Imp. Cesium-ion Thruster. 00687_ Enh. Optical Array permanently disabled. 00687_ Malfunction: Power surge. Map ----- +----------------------------------------------------+ | # #?????# ?# #???? | | # """ #?????# # ##### | | # """"" #?????# # | | # """"" #?????# ! + | | + #?????# # ^ | | # """ #?????# ## #####+## | | # """"" #?????# ??# #??? ? | | # """"" #?????# ??# #??? ? | | # #?????# ???# #??"" | | #! #?????# ???# #??"" | | ##############?????##########????# #?""" | | # #???????????????????# #?""" | | # """"""""" #???????????????????# # | | + #???????????????????# # | | # """"""""" =#???????????????????# # | | # #???????????????????# ######## | | # """"""""" #???????????????????# #??????? | | # #???????????????????? ???????? | | # """"""""" #???????????????????# #??????? | | # #???????????????????# #??????? | | / """"""""" #???????????????????# #??????? | | # !#???????????????????# #??????? | | # * #???????????????????# #??????? | | ##############???????????????????# #??????? | | #????????????## #############????# #??????? | | #????????????# @ #????# #??????? | | #????????????# #????# #??????? | | ###+#######?????????# #????# #??????? | | ?????????# ###### #??????? | | ?????????# s s ######## | | ??? u ss | | ???################# ############### | | #?????????????????#####?????????????? | | #??????????????????????????????????? | | #??????????????????????????????????# | | #??????????????????????????????????# | | ##############??????????????????????????????????## | | | | | | | | | | | | | | | | | | | | | | | | | | | +----------------------------------------------------+ Best States ------------- Heat Dissipation 34 Energy Generation 5 Energy Capacity 100 Matter Stores 257 Matter Capacity 300 Sight Range 22 Terrain Scan Range 14 Terrain Scan Density 10 Propulsion Shielding 33 Evasion (%) 50 Item Schematics ----------------- None Robot Schematics ------------------ None Fabricated ------------ Nothing Alien Tech Used ----------------- None Achievements -------------- None Challenges ------------ None Game ------ Seed ShrapnelPointNukerbomber Manual? 0 Play Time 00:15:20 Cumulative 520.7 hours Start 2020.06.27 @ 22:46:05 End 2020.06.27 @ 22:57:39 Sessions 1 Manual Loads 0 Difficulty Rogue Special Mode None Game No. 420 Rogue 420 Adventurer 0 Explorer 0 Win Type - Total 141 Types 84/8/34/6/3/2/4 Lore% 98 Gallery% 95 Achievement% 83 Wizard Run 0 Options --------- ASCII 1 Keyboard 0 Movement Vi Keybinds 0 Fullscreen 0 Font 16/Smallcaps Map View 86x75 Tactical HUD 1 Map Filters NONE Filters NONE Steam 1 RUN: 3b75e5b9-72fd-4993-bbcb-a026db2a2ea0